bitfinex/quotes_ETHUSD_20250605
["timestamp","ask_amount","ask_price","bid_price","bid_amount"]
[1749116138723,4.39136556,2603.3,2602.7,21.82629624]
[1749116138724,6.757,2603.2,2602.7,21.82629624]
[1749116139035,6.757,2603.2,2602.7,19.8421603]
[1749116139036,10.1273368,2603.2,2602.7,19.8421603]
[1749116139440,10.1273368,2603.2,2602.7,16.0]
[1749116139441,13.96877976,2603.2,2602.7,16.0]
[1749116139746,7.76178866,2603.2,2602.7,16.0]
[1749116139928,6.207,2603.1,2602.7,16.0]
[1749116140433,6.207,2603.1,2602.7,19.84215013]
[1749116141512,6.207,2603.1,2602.7,16.0]
[1749116141701,6.207,2603.1,2602.7,3.84213956]
[1749116142042,10.1273368,2603.2,2602.7,3.84213956]
[1749116142440,13.96876615,2603.2,2602.6,16.0]
[1749116142765,10.1273368,2603.2,2602.7,3.8421514]
[1749116143517,13.96876584,2603.2,2602.6,22.87173946]
[1749116143838,3.3703368,2603.0,2602.6,22.87175859]
[1749116144034,3.3703368,2603.0,2602.7,1.591]
[1749116147357,4.6363368,2603.0,2602.8,1.591]
[1749116147541,0.84779255,2602.9,2602.8,1.591]
[1749116147939,4.6363368,2603.0,2602.8,1.591]
[1749116149954,3.8421639,2602.7,2602.6,1.591]
[1749116150125,8.4785007,2602.7,2602.6,1.591]
[1749116150449,4.6363368,2602.7,2602.6,1.591]
[1749116150641,4.6363368,2602.7,2602.4,5.43354473]
[1749116150839,6.206,2602.6,2602.4,5.43354473]
[1749116152717,6.206,2602.6,2602.4,1.591]
[1749116152918,6.206,2602.6,2602.5,16.0]
[1749116153931,4.6363368,2602.7,2602.5,16.0]
[1749116154259,7.4433,2603.0,2602.8,19.84201019]
[1749116154552,6.207,2603.1,2602.8,19.84201019]
[1749116155053,9.5773368,2603.1,2602.8,19.84201019]
[1749116155874,9.5773368,2603.3,2603.1,19.84147269]
[1749116156029,10.66324048,2603.3,2603.2,1.592]
[1749116157033,4.45624048,2603.3,2603.2,1.592]
[1749116157248,3.3703368,2603.3,2603.2,1.592]
[1749116165388,3.3703368,2603.3,2603.2,1.591]
[1749116166099,3.3703368,2603.3,2602.8,0.51]
[1749116166297,3.84186868,2602.9,2602.8,0.51]
[1749116166445,7.3637,2602.9,2602.6,1.591]
[1749116166649,3.3703368,2602.7,2602.6,1.591]
[1749116167257,7.21250513,2602.7,2602.6,1.591]
[1749116167462,3.3703368,2602.7,2602.6,1.591]
[1749116169359,3.3703368,2602.7,2602.5,16.0]
[1749116169554,7.3665,2602.6,2602.5,17.591]
[1749116169750,2.23390368,2602.8,2602.5,17.591]
[1749116170054,6.206,2602.7,2602.5,21.43344654]
[1749116170689,3.3703368,2602.9,2602.6,16.0]
[1749116170889,6.206,2602.7,2602.6,16.0]
[1749116171259,6.806,2602.7,2602.6,16.0]
[1749116172300,0.6,2602.7,2602.6,16.0]
[1749116172505,6.806,2602.7,2602.6,16.0]
[1749116173577,11.19397048,2602.7,2602.6,17.592]
[1749116178516,11.19397048,2602.7,2602.6,1.592]
[1749116180811,11.19397048,2602.7,2602.4,3.84258389]
[1749116181016,11.19397048,2602.7,2602.6,1.591]
[1749116181180,11.19397048,2602.7,2602.3,20.35265827]
[1749116181501,11.19397048,2602.7,2602.4,1.591]
[1749116181502,3.3703368,2602.5,2602.4,1.591]
[1749116181700,7.21287933,2602.5,2602.4,1.591]
[1749116181889,9.5763368,2602.5,2602.4,1.591]
[1749116185600,7.32539705,2602.6,2602.4,17.591]
[1749116185823,6.206,2602.6,2602.4,17.591]
[1749116186333,6.206,2602.6,2602.4,1.591]
[1749116186896,6.206,2602.6,2602.3,20.35274417]
[1749116186897,3.3703368,2602.5,2602.3,0.51]
[1749116187233,4.5643368,2602.5,2602.4,1.591]
[1749116187799,4.5643368,2602.5,2602.3,0.51]
[1749116188023,7.6672736,2602.4,2602.3,2.101]
[1749116191410,7.6672736,2602.4,2602.1,1.591]
[1749116191603,3.3703368,2602.2,2602.1,1.591]
[1749116191803,9.5773368,2602.2,2602.1,1.591]
[1749116197955,6.207,2602.2,2602.1,5.43404984]
[1749116198680,6.207,2602.3,2602.1,21.43404984]
[1749116199163,9.5773368,2602.4,2602.1,17.591]
[1749116200768,3.3703368,2602.4,2602.1,17.591]
[1749116201064,6.207,2602.3,2602.1,21.43398837]
[1749116201255,6.207,2602.4,2602.3,16.0]
[1749116201625,3.3703368,2602.6,2602.3,19.84275392]
[1749116201828,6.207,2602.5,2602.1,5.43398837]
[1749116202127,6.207,2602.5,2602.3,16.0]
[1749116202527,3.3703368,2602.6,2602.3,16.0]
[1749116202774,6.207,2602.5,2602.3,16.0]
[1749116205864,4.32685693,2602.6,2602.3,16.0]
[1749116206039,6.206,2602.5,2602.3,16.0]
[1749116208065,6.206,2602.5,2602.1,5.43399496]
[1749116208243,3.3703368,2602.4,2602.1,1.591]
[1749116208625,3.3703368,2602.4,2602.2,16.0]
[1749116208829,3.3703368,2602.4,2602.1,1.591]
[1749116210727,3.3703368,2602.4,2602.1,5.43399446]
[1749116212332,3.3703368,2602.4,2602.2,16.0]
[1749116213537,6.206,2602.5,2602.2,19.84287487]
[1749116213737,6.206,2602.5,2602.2,16.0]
[1749116214553,6.206,2602.5,2602.1,1.591]
[1749116214786,8.20800584,2602.5,2602.1,1.591]
[1749116215587,8.20800584,2602.5,2602.2,16.0]
[1749116217311,8.20800584,2602.5,2602.2,3.84289612]
[1749116217459,0.6,2602.7,2602.1,21.43402125]
[1749116217807,6.206,2602.6,2602.2,3.84278413]
[1749116218086,6.206,2602.6,2602.3,16.0]
[1749116218290,6.806,2602.7,2602.3,3.84269115]
[1749116218465,10.1763368,2602.7,2602.3,3.84269115]
[1749116219697,10.1763368,2602.7,2602.2,3.84282914]
[1749116220600,14.01851035,2602.7,2602.1,5.43390537]
[1749116220891,15.92522667,2602.7,2602.1,5.4339342]
[1749116222097,15.92522667,2602.7,2602.2,3.84287367]
[1749116222299,15.92522667,2602.7,2602.1,5.4339342]
[1749116222597,3.84237673,2602.6,2602.1,5.4339342]
[1749116222808,3.3703368,2602.5,2602.1,5.4339342]
[1749116223625,7.21279964,2602.5,2602.1,1.591]
[1749116223911,1.2276,2602.4,2602.1,1.591]
[1749116224218,1.2276,2602.4,2602.1,17.591]
[1749116225209,3.3703368,2602.3,2601.9,0.51]
[1749116225436,3.3703368,2602.1,2601.9,0.51]
[1749116225597,4.5766368,2602.1,2602.0,1.591]
[1749116225769,5.41859083,2602.1,2602.0,1.591]
[1749116227790,4.5766368,2602.1,2602.0,1.591]
[1749116228092,6.206,2602.3,2602.0,1.591]
[1749116228093,7.4001,2602.3,2602.0,1.591]
[1749116228413,6.206,2602.3,2602.1,16.0]
[1749116228612,6.206,2602.3,2602.0,1.591]
[1749116229287,6.206,2602.3,2602.1,16.0]
[1749116229885,6.25197979,2602.5,2602.1,3.84302892]
[1749116230102,6.25197979,2602.5,2602.1,16.0]
[1749116230305,6.206,2602.4,2602.1,16.0]
[1749116231875,6.206,2602.4,2602.0,5.43411547]
[1749116231876,3.3703368,2602.3,2602.0,1.591]
[1749116232078,1.2891,2602.5,2602.1,16.0]
[1749116232412,6.206,2602.4,2602.1,16.0]
[1749116233283,0.6,2602.2,2602.1,16.0]
[1749116233892,0.6,2602.2,2602.1,22.03746918]
[1749116235113,0.6,2602.2,2602.1,19.84304984]
[1749116235814,0.6,2602.2,2602.1,39.69315584]
[1749116236403,0.6,2602.2,2602.1,35.32795784]
[1749116236812,0.6,2602.2,2602.1,34.75195784]
[1749116236987,0.6,2602.2,2602.1,38.12229464]
[1749116237186,1.1846,2603.0,2602.8,16.0]
[1749116237402,6.205,2603.1,2602.9,1.59]
[1749116240406,4.5966368,2603.2,2602.9,1.59]
[1749116240606,6.205,2603.1,2602.9,1.59]
[1749116240805,4.5966368,2603.2,2602.9,1.59]
[1749116241006,6.205,2603.1,2602.9,1.59]
[1749116241730,3.3703368,2603.0,2602.9,1.59]
[1749116244594,7.21205789,2603.0,2602.6,16.0]
[1749116244930,7.21254737,2602.7,2602.5,0.51]
[1749116245130,11.28001153,2602.6,2602.5,2.1]
[1749116246016,7.4377,2602.6,2602.5,2.1]
[1749116247031,11.28001153,2602.6,2602.5,2.1]
[1749116248898,13.12925604,2602.6,2602.5,0.51]
[1749116249235,13.12925604,2602.6,2602.3,1.59]
[1749116249408,3.3703368,2602.4,2602.3,1.59]
[1749116257234,3.3703368,2602.4,2602.0,3.84306234]
[1749116257439,6.204,2602.5,2602.3,1.59]
[1749116257624,1.1913,2602.3,2602.2,1.59]
[1749116257823,4.5616368,2602.3,2602.2,1.59]
[1749116258023,4.5616368,2602.3,2602.1,1.59]
[1749116258024,8.40439128,2602.3,2602.1,1.59]
[1749116258215,4.5616368,2602.3,2602.1,1.59]
[1749116258415,0.9485133,2602.2,2602.1,1.59]
[1749116260012,0.9485133,2602.2,2601.8,0.51]
[1749116260212,3.3703368,2601.9,2601.8,4.35347721]
[1749116260514,3.3703368,2601.9,2601.8,5.94347721]
[1749116262552,3.3703368,2601.9,2601.8,4.35347721]
[1749116262726,3.3703368,2601.9,2601.8,0.51]
[1749116262928,4.6573368,2601.9,2601.8,2.1]
[1749116264054,3.3703368,2601.9,2601.8,2.1]
[1749116268054,3.3703368,2601.9,2601.8,5.94349296]
[1749116269767,3.3703368,2601.9,2601.8,2.1]
[1749116270070,3.3703368,2601.9,2601.8,5.94349296]
[1749116271362,3.3703368,2601.9,2601.8,4.35349296]
[1749116271538,3.3703368,2601.9,2601.8,5.94349296]
[1749116275265,3.3703368,2602.1,2602.0,16.0]
[1749116276568,3.3703368,2602.1,2601.8,21.94341386]
[1749116278568,3.3703368,2602.1,2602.0,16.0]
[1749116280770,3.3703368,2602.1,2601.8,21.94342286]
[1749116281884,3.3703368,2602.1,2602.0,16.0]
[1749116282580,3.3703368,2602.1,2601.8,21.94338376]
[1749116283879,3.3703368,2601.9,2601.8,2.1]
[1749116284080,4.6556368,2601.9,2601.8,2.1]
[1749116285187,4.6556368,2602.1,2601.8,2.1]
[1749116285866,3.3703368,2601.9,2601.8,2.1]
[1749116286850,3.3703368,2602.0,2601.8,2.1]
[1749116287664,3.3703368,2602.0,2601.9,1.59]
[1749116288495,4.84059099,2602.0,2601.7,3.84363563]
[1749116288664,4.84059099,2602.0,2601.9,1.59]
[1749116290759,1.47025419,2602.0,2601.9,1.59]
[1749116290955,3.3703368,2602.0,2601.9,1.59]
[1749116292053,3.3703368,2602.0,2601.7,0.51]
[1749116292256,4.6620368,2601.8,2601.7,0.51]
[1749116292456,4.6620368,2601.8,2601.6,1.59]
[1749116292775,8.50560491,2601.8,2601.6,1.59]
[1749116293012,4.6620368,2601.8,2601.6,1.59]
[1749116293488,4.6620368,2601.8,2601.6,17.59]
[1749116296094,4.6620368,2601.8,2601.6,1.59]
[1749116298703,3.3703368,2601.8,2601.7,16.0]
[1749116299161,3.3703368,2601.8,2601.6,5.43371772]
[1749116299162,3.3703368,2601.8,2601.6,1.59]
[1749116299556,3.3703368,2601.8,2601.7,16.0]
[1749116300771,3.3703368,2602.1,2601.9,16.0]
[1749116300983,10.4257019,2602.1,2601.9,16.0]
[1749116301160,9.5743368,2602.1,2601.9,16.0]
[1749116301362,9.5743368,2602.1,2601.7,19.84355356]
[1749116301708,5.14331424,2602.3,2601.7,19.84355356]
[1749116301709,5.14331424,2602.3,2601.7,16.0]
[1749116301911,9.5743368,2602.1,2601.7,19.84355106]
[1749116302317,3.3703368,2602.1,2601.9,16.0]
[1749116302466,6.204,2602.2,2601.9,3.84327659]
[1749116302665,6.204,2602.2,2601.9,19.84327659]
[1749116302861,3.842329,2602.6,2602.1,3.84295024]
[1749116302862,1.2337,2602.6,2602.1,3.84295024]
[1749116303093,1.2337,2602.6,2602.0,16.0]
[1749116303094,3.3703368,2602.5,2602.2,1.589]
[1749116303291,9.5743368,2602.5,2602.2,5.43187734]
[1749116303608,9.5743368,2602.5,2602.3,16.0]
[1749116303991,9.5743368,2602.5,2602.2,5.43187293]
[1749116304193,3.3703368,2602.5,2602.2,5.43187293]
[1749116304366,9.5743368,2602.5,2602.2,5.43187293]
[1749116304566,9.5743368,2602.5,2602.2,1.589]
[1749116305500,3.3703368,2602.3,2602.2,1.589]
[1749116305675,6.204,2602.5,2602.2,1.589]
[1749116305881,3.3703368,2602.3,2602.2,1.589]
[1749116309215,3.3703368,2602.3,2602.2,21.43190215]
[1749116309504,6.204,2602.5,2602.2,21.43190215]
[1749116309505,9.5733368,2602.5,2602.3,16.0]
[1749116309708,9.5733368,2602.5,2602.2,17.589]
[1749116310374,9.5733368,2602.5,2602.2,1.589]
[1749116310766,3.3703368,2602.5,2602.2,1.589]
[1749116311076,3.3703368,2602.5,2602.2,17.589]
[1749116312118,3.3703368,2602.5,2602.2,1.589]
[1749116312291,3.3703368,2602.5,2602.2,17.589]
[1749116312476,3.3703368,2602.5,2602.2,1.589]
[1749116313920,3.3703368,2602.5,2601.7,0.51]
[1749116313921,3.3703368,2602.3,2601.7,0.51]
[1749116314082,3.3703368,2602.2,2601.8,17.589]
[1749116314420,7.2132509,2602.2,2601.8,17.589]
[1749116314620,3.3703368,2602.2,2601.8,17.589]
[1749116315108,3.3703368,2602.2,2601.8,5.43248837]
[1749116315719,3.3703368,2602.2,2601.8,1.589]
[1749116316724,7.21327288,2602.2,2601.8,1.589]
[1749116316879,3.3703368,2602.2,2601.8,1.589]
[1749116317324,7.21324234,2602.2,2601.8,1.589]
[1749116317518,7.21324234,2602.2,2601.7,20.35362807]
[1749116317822,3.3703368,2602.0,2601.8,1.589]
[1749116322724,3.3703368,2602.0,2601.9,1.589]
[1749116322941,1.2192,2602.1,2601.9,1.589]
[1749116325392,1.2042,2602.8,2601.9,1.589]
[1749116325594,3.3703368,2602.4,2602.1,16.0]
[1749116325824,6.203,2602.3,2602.1,16.0]
[1749116326495,6.203,2602.3,2601.9,5.43225725]
[1749116326922,6.203,2602.4,2602.2,16.0]
[1749116327317,0.50461753,2602.7,2602.4,16.0]
[1749116327656,0.50461753,2602.7,2602.2,3.84280093]
[1749116327657,0.50461753,2602.7,2602.5,1.588]
[1749116327820,1.17347399,2602.6,2602.5,1.588]
[1749116328255,5.01578552,2602.6,2602.5,1.588]
[1749116328618,6.23108552,2602.6,2602.0,19.84315556]
[1749116328830,7.21283611,2602.5,2602.1,1.588]
[1749116329254,3.3703368,2602.5,2602.1,1.588]
[1749116329521,7.2128221,2602.5,2602.1,1.588]
[1749116329752,7.2128221,2602.5,2602.0,12.85744167]
[1749116330057,1.2153,2602.6,2602.2,1.588]
[1749116330361,10.07695433,2602.7,2602.2,5.43087007]
[1749116330745,13.91912962,2602.7,2602.2,5.43087007]
[1749116331063,13.91912962,2602.7,2602.3,3.84272991]
[1749116331064,1.52088296,2602.6,2602.3,3.84272991]
[1749116331360,0.50461753,2602.7,2602.2,5.43081603]
[1749116331527,0.50461753,2602.7,2602.3,3.84274255]
[1749116332149,4.34678267,2602.7,2602.3,16.0]
[1749116332856,0.50461753,2602.7,2602.2,1.588]
[1749116333084,0.50461753,2602.7,2602.2,5.43082854]
[1749116333423,4.34679324,2602.7,2602.2,5.43082854]
[1749116333839,0.50461753,2602.7,2602.2,5.43082854]
[1749116334060,11.33377845,2602.8,2602.2,5.43082854]
[1749116335277,3.84217589,2602.7,2602.2,5.43082854]
[1749116335591,3.84217589,2602.7,2602.3,16.0]
[1749116337675,3.84217589,2602.7,2602.2,1.588]
[1749116337880,3.8421639,2602.7,2602.2,17.588]
[1749116338174,5.69678586,2602.7,2602.2,1.588]
[1749116340764,3.84218563,2602.7,2602.2,1.588]
[1749116340963,11.33278426,2602.8,2602.3,3.84275332]
[1749116341169,1.2897,2602.8,2602.6,16.0]
[1749116341366,7.4034,2603.0,2602.5,19.84239155]
[1749116341690,11.24514642,2603.0,2602.5,19.84239155]
[1749116342392,3.84191413,2602.9,2602.5,16.0]
[1749116342558,3.84191413,2602.9,2602.3,19.84262008]
[1749116342756,3.84205379,2602.8,2602.2,3.84282823]
[1749116342974,5.0893029,2602.7,2602.3,16.0]
[1749116343156,5.0893029,2602.7,2602.4,1.588]
[1749116343489,0.84596397,2602.6,2602.4,1.588]
[1749116343669,1.2471,2602.7,2602.4,17.588]
[1749116343870,5.08927247,2602.7,2602.4,1.588]
[1749116344068,3.84260195,2602.5,2602.2,0.51]
[1749116344272,8.46004362,2602.4,2602.3,1.588]
[1749116344687,3.84276514,2602.3,2601.8,12.13247587]
[1749116344887,5.07304492,2602.3,2601.9,17.588]
[1749116345071,4.6174368,2602.4,2601.9,17.588]
[1749116345390,4.6174368,2602.4,2602.1,16.0]
[1749116348071,8.460144,2602.4,2601.9,17.588]
[1749116348400,10.5938132,2602.3,2602.0,17.588]
[1749116348605,10.5938132,2602.3,2602.0,1.588]
[1749116348786,12.49919231,2602.3,2602.0,1.588]
[1749116349465,8.65637911,2602.3,2602.0,1.588]
[1749116354927,2.45537911,2602.3,2602.0,1.588]
[1749116355132,6.201,2602.3,2602.0,1.588]
[1749116356114,6.201,2602.3,2602.2,16.0]
[1749116359014,1.2471,2602.4,2602.2,16.0]
[1749116359208,7.4481,2602.4,2602.2,16.0]
[1749116359913,3.84220621,2602.7,2602.2,3.84290017]
[1749116360095,7.82182062,2602.6,2602.1,3.84295964]
[1749116361295,1.7385,2602.5,2601.8,16.51]
[1749116361520,1.1885,2602.3,2602.2,1.588]
[1749116363130,1.1885,2602.3,2602.2,17.588]
[1749116363336,1.1885,2602.3,2602.2,1.588]
[1749116365916,1.1885,2602.3,2602.0,19.84311038]
[1749116366218,1.1885,2602.3,2602.2,1.588]
[1749116370933,1.1885,2602.3,2602.2,17.588]
[1749116371732,6.201,2602.4,2602.2,17.588]
[1749116372316,1.2756,2602.5,2602.2,21.43085224]
[1749116372516,6.201,2602.5,2602.2,17.588]
[1749116372717,6.201,2602.5,2602.2,21.43083024]
[1749116372923,6.201,2602.5,2602.2,1.588]
[1749116374333,6.201,2602.5,2602.2,5.43089213]
[1749116374637,6.201,2602.5,2602.2,1.588]
[1749116375046,6.201,2602.5,2602.2,5.43088014]
[1749116375217,0.38422062,2602.6,2602.3,3.84273385]
[1749116375418,1.3034,2602.7,2602.4,16.0]
[1749116375694,6.201,2602.8,2602.4,19.84251047]
[1749116375826,1.146,2602.9,2602.5,3.84243041]
[1749116376009,6.2,2602.8,2602.6,16.0]
[1749116376210,1.1412,2603.2,2602.8,16.0]
[1749116376410,6.2,2603.1,2602.8,17.588]
[1749116376852,6.2,2603.0,2602.8,17.588]
[1749116377646,1.1412,2603.2,2602.8,5.42993892]
[1749116377953,1.1412,2603.2,2603.0,16.0]
[1749116378327,1.694,2603.5,2603.0,16.0]
[1749116378647,10.04114722,2603.4,2603.0,16.0]
[1749116378852,10.04114722,2603.4,2602.9,16.0]
[1749116379953,10.04114722,2603.4,2602.8,5.42992963]
[1749116380832,10.04114722,2603.4,2602.9,3.84186421]
[1749116381152,10.04114722,2603.4,2602.8,5.42993768]
[1749116381826,3.84131078,2603.3,2602.8,1.588]
[1749116382031,5.73599026,2603.3,2602.8,1.588]
[1749116382327,5.73599026,2603.3,2602.8,5.42999704]
[1749116382528,5.73599026,2603.3,2602.8,1.588]
[1749116383264,11.93499026,2603.3,2602.8,1.588]
[1749116383968,1.2484,2603.1,2602.8,1.588]
[1749116387980,1.2484,2603.1,2602.8,17.588]
[1749116391201,3.28791459,2603.1,2602.8,17.588]
[1749116395302,3.28791459,2603.1,2602.9,1.587]
[1749116395475,3.28791459,2603.1,2603.0,1.587]
[1749116396200,7.12948809,2603.1,2603.0,1.587]
[1749116396380,3.28791459,2603.1,2603.0,1.587]
[1749116401629,7.12948809,2603.1,2603.0,1.587]
[1749116401833,3.28791459,2603.1,2603.0,1.587]
[1749116405828,1.1894,2603.3,2603.0,1.587]
[1749116405991,1.1894,2603.3,2603.0,5.42871235]
[1749116406331,1.1894,2603.6,2603.2,13.84134977]
[1749116406528,6.198,2603.6,2603.3,3.84126792]
[1749116406832,6.198,2603.6,2603.3,3.84114743]
[1749116409933,6.198,2603.6,2603.2,19.84141261]
[1749116410292,6.198,2603.6,2603.4,16.0]
[1749116411391,8.40950929,2603.8,2603.4,16.0]
[1749116411588,6.197,2603.6,2603.4,16.0]
[1749116411821,6.197,2603.6,2603.2,3.84134909]
[1749116412027,6.197,2603.6,2603.1,19.84149816]
[1749116412225,6.197,2603.6,2603.1,23.03921789]
[1749116413003,10.03789997,2603.6,2603.1,19.19771973]
[1749116413211,10.03789997,2603.6,2603.1,23.03922054]
[1749116413931,13.4082655,2603.6,2603.1,16.0]
[1749116414232,4.5610368,2603.2,2603.1,1.587]
[1749116415713,8.40246273,2603.2,2603.1,1.587]
[1749116416033,4.5610368,2603.2,2603.1,1.587]
[1749116417235,1.1907,2603.2,2603.1,1.587]
[1749116421100,2.65062455,2603.2,2603.1,1.587]
[1749116428512,2.65062455,2603.2,2603.1,1.586]
[1749116429562,6.49205048,2603.2,2603.1,1.586]
[1749116429947,2.65062455,2603.2,2603.1,1.586]
[1749116430710,9.86248932,2603.2,2603.0,0.51]
[1749116431046,1.818899,2603.1,2602.7,19.84210263]
[1749116431246,0.55,2603.1,2602.8,1.586]
[1749116432008,1.1907,2603.2,2602.9,16.0]
[1749116432213,1.1907,2603.2,2602.8,1.586]
[1749116432436,6.197,2603.3,2602.8,1.586]
[1749116432437,0.55,2603.3,2603.0,16.0]
[1749116432641,6.746,2603.4,2603.0,19.84169906]
[1749116432813,1.1956,2603.5,2603.2,16.0]
[1749116433025,7.3916,2603.5,2603.2,16.0]
[1749116433222,7.3916,2603.5,2602.8,1.586]
[1749116433223,11.23260922,2603.5,2603.0,16.0]
[1749116434322,3.84113121,2603.4,2603.0,16.0]
[1749116435132,11.2327112,2603.5,2603.0,16.0]
[1749116435339,11.2327112,2603.5,2603.0,19.84169983]
[1749116436302,5.0367112,2603.5,2603.0,16.0]
[1749116436456,11.2327112,2603.5,2603.0,19.84171894]
[1749116437501,11.2327112,2603.5,2603.0,16.0]
[1749116439301,11.2327112,2603.5,2603.0,19.84167421]
[1749116439476,5.0367112,2603.5,2602.9,6.196]
[1749116439682,6.196,2603.5,2603.0,10.0]
[1749116439859,6.196,2603.6,2603.2,3.84134998]
[1749116440055,1.1487,2603.9,2603.3,3.84127549]
[1749116440277,0.02,2603.9,2603.5,3.84098329]
[1749116440488,0.02,2603.9,2603.6,13.84075364]
[1749116440791,0.02,2603.9,2603.6,3.84075364]
[1749116440995,0.02,2603.9,2603.5,10.03694133]
[1749116441156,0.02,2603.9,2603.7,3.84068319]
[1749116441494,0.02,2603.9,2603.8,16.0]
[1749116441878,0.02,2603.9,2603.6,19.84077221]
[1749116442064,0.02,2603.9,2603.6,16.0]
[1749116442272,0.02,2603.9,2603.6,19.84077087]
[1749116442460,0.02,2603.9,2603.8,16.0]
[1749116442861,0.02,2603.9,2603.6,23.10335566]
[1749116443380,0.02,2603.9,2603.7,16.0]
[1749116443587,0.02,2603.9,2603.6,23.10335566]
[1749116443791,0.02,2603.9,2603.7,16.0]
[1749116446401,0.02,2603.9,2603.7,22.85574198]
[1749116446587,0.02,2603.9,2603.8,3.84054074]
[1749116446763,0.02,2603.9,2603.8,54.95863954]
[1749116447298,0.02,2603.9,2603.8,51.58830274]
[1749116447503,0.02,2603.9,2603.8,43.10728174]
[1749116447800,0.02,2603.9,2603.8,46.9771759]
[1749116448103,0.02,2603.9,2603.8,46.4155289]
[1749116448703,0.02,2603.9,2603.8,46.9255289]
[1749116450161,0.02,2603.9,2603.8,50.2958657]
[1749116451377,0.02,2603.9,2603.8,30.4154349]
[1749116451611,0.02,2603.9,2603.8,30.4144349]
[1749116456520,1.1876,2604.5,2604.1,3.8400635]
[1749116456820,1.1876,2604.5,2604.2,17.585]
[1749116458495,7.20957453,2604.7,2604.2,5.4249182]
[1749116458822,7.20955606,2604.7,2604.2,5.4249182]
[1749116459020,3.83913392,2604.8,2604.4,16.0]
[1749116459322,11.19643392,2604.8,2604.4,16.0]
[1749116459489,13.03900462,2604.8,2604.3,16.0]
[1749116459692,12.98900462,2604.8,2604.3,16.0]
[1749116459890,3.83922732,2604.7,2604.3,16.0]
[1749116460592,6.84600299,2604.8,2604.3,16.0]
[1749116460784,13.03900299,2604.8,2604.3,16.0]
[1749116460988,2.0268311,2604.7,2604.3,16.0]
[1749116461388,2.0268311,2604.7,2604.3,8.27189211]
[1749116461589,2.0268311,2604.7,2604.3,3.83979229]
[1749116462844,5.86604887,2604.7,2604.2,5.42489656]
[1749116463546,5.86604887,2604.7,2604.3,1.585]
[1749116463746,1.70624198,2604.6,2604.3,1.585]
[1749116464513,3.83921777,2604.7,2604.3,1.585]
[1749116464916,1.1643,2604.8,2604.3,5.42478737]
[1749116465146,7.22934172,2604.9,2604.3,5.42478737]
[1749116465147,0.02,2604.9,2604.3,5.4247752]
[1749116465314,0.02,2604.9,2604.8,3.83906633]
[1749116465509,0.02,2604.9,2604.8,19.83906633]
[1749116469211,0.02,2604.9,2604.8,61.82022944]
[1749116470155,0.02,2604.9,2604.8,48.45536744]
[1749116470322,0.02,2604.9,2604.8,32.38234164]
[1749116471716,0.02,2604.9,2604.8,30.99990864]
[1749116472048,0.02,2604.9,2604.8,38.78690864]
[1749116472614,0.02,2604.9,2604.8,26.34934064]
[1749116472821,0.02,2604.9,2604.8,21.42306633]
[1749116475348,0.02,2604.9,2604.8,33.82693333]
[1749116475551,0.02,2604.9,2604.8,32.24293333]
[1749116475750,0.02,2604.9,2604.8,31.52743333]
[1749116475958,0.02,2604.9,2604.8,27.97059933]
[1749116476157,0.02,2604.9,2604.8,31.84049349]
[1749116481969,0.02,2604.9,2604.8,28.64091349]
[1749116482150,0.02,2604.9,2604.8,25.29296049]
[1749116483389,0.02,2604.9,2604.8,21.42906633]
[1749116483901,0.02,2604.9,2604.8,29.83384133]
[1749116484242,0.02,2604.9,2604.8,33.20417813]
[1749116484849,0.02,2604.9,2604.8,34.34782075]
[1749116485268,0.02,2604.9,2604.8,30.97748395]
[1749116485471,0.02,2604.9,2604.8,38.21771491]
[1749116491153,0.02,2604.9,2604.8,38.76771491]
[1749116492582,0.02,2604.9,2604.8,38.21677591]
[1749116493784,0.02,2604.9,2604.8,37.62407229]
[1749116494160,0.02,2604.9,2604.8,38.21677591]
[1749116495574,0.02,2604.9,2604.8,37.62407229]
[1749116498102,0.02,2604.9,2604.8,35.48407229]
[1749116498305,0.02,2604.9,2604.8,43.27107229]
[1749116498681,0.02,2604.9,2604.8,35.48407229]
[1749116498979,0.02,2604.9,2604.8,43.27107229]
[1749116501308,0.02,2604.9,2604.8,37.07407229]
[1749116501509,0.02,2604.9,2604.8,43.26907229]
[1749116507332,0.02,2604.9,2604.8,35.48407229]
[1749116507516,0.02,2604.9,2604.8,43.26607229]
[1749116507702,0.02,2604.9,2604.8,37.07407229]
[1749116508035,0.02,2604.9,2604.8,43.26707229]
[1749116510186,0.02,2604.9,2604.8,35.48407229]
[1749116510390,0.02,2604.9,2604.8,43.26107229]
[1749116514852,0.02,2604.9,2604.8,35.48407229]
[1749116515011,0.02,2604.9,2604.8,43.25907229]
[1749116515944,0.02,2604.9,2604.8,37.06907229]
[1749116516131,0.02,2604.9,2604.8,43.25807229]
[1749116517742,0.02,2604.9,2604.8,24.15318233]
[1749116517944,0.02,2604.9,2604.8,30.34218233]
[1749116519749,0.02,2604.9,2604.8,14.34218233]
[1749116520139,0.02,2604.9,2604.8,8.15318233]
[1749116520512,1.1313,2604.9,2604.8,8.15318233]
[1749116520707,1.1313,2604.9,2604.8,6.56818233]
[1749116520913,1.1313,2604.9,2604.8,8.15318233]
[1749116521652,1.1313,2604.9,2604.8,24.15318233]
[1749116522551,1.1313,2604.9,2604.8,22.56818233]
[1749116522761,1.1313,2604.9,2604.8,5.42406633]
[1749116523067,1.1313,2604.9,2604.8,21.42406633]
[1749116525156,1.1313,2604.9,2604.8,19.83906633]